lending/lending_fUSD_20241211
["ID","MTS","AMOUNT","RATE_DAILY","PERIOD"]
[345051284,1733952637787,-500.0,0.00011099,2]
[345051285,1733952637796,-500.0,0.00011099,2]
[345051287,1733952637806,-216.64,0.00011099,2]
[345051289,1733952637816,-500.0,0.00011099,2]
[345051291,1733952637826,-500.0,0.00011099,2]
[345051293,1733952637835,-500.0,0.00011099,2]
[345051295,1733952637846,-500.0,0.00011099,2]
[345051297,1733952637856,-500.0,0.00011099,2]
[345051299,1733952637865,-500.0,0.00011099,2]
[345051301,1733952637876,-500.0,0.00011099,2]
[345051303,1733952637886,-500.0,0.00011099,2]
[345051305,1733952637897,-500.0,0.00011099,2]
[345051307,1733952637907,-500.0,0.00011099,2]
[345051309,1733952637916,-457.78,0.00011099,2]
[345051312,1733952637926,-500.0,0.00011099,2]
[345051314,1733952637936,-500.0,0.00011099,2]
[345051316,1733952637945,-500.0,0.00011099,2]
[345051318,1733952637955,-500.0,0.00011099,2]
[345051319,1733952637965,-500.0,0.00011099,2]
[345051321,1733952637974,-500.0,0.00011099,2]
[345051323,1733952637984,-500.0,0.00011099,2]
[345051326,1733952637995,-196.94,0.00011099,2]
[345051327,1733952638005,-500.0,0.00011099,2]
[345051329,1733952638015,-500.0,0.00011099,2]
[345051331,1733952638024,-500.0,0.00011099,2]
[345051333,1733952638033,-500.0,0.00011099,2]
[345051335,1733952638043,-500.0,0.00011099,2]
[345051337,1733952638052,-500.0,0.00011099,2]
[345051339,1733952638062,-500.0,0.00011099,2]
[345051340,1733952638072,-500.0,0.00011099,2]
[345051341,1733952638081,-500.0,0.00011099,2]
[345051342,1733952638091,-500.0,0.00011099,2]
[345051343,1733952638102,-500.0,0.00011099,2]
[345051344,1733952638111,-350.85,0.00011099,2]
[345051345,1733952638121,-500.0,0.00011099,2]
[345051346,1733952638130,-500.0,0.00011099,2]
[345051347,1733952638140,-500.0,0.00011099,2]
[345051348,1733952638151,-500.0,0.00011099,2]
[345051349,1733952638160,-348.26985233,0.00011099,2]
[345051350,1733952638170,-500.0,0.00011099,2]
[345051351,1733952638179,-500.0,0.00011099,2]
[345051352,1733952638189,-500.0,0.00011099,2]
[345051353,1733952638198,-500.0,0.00011099,2]
[345051354,1733952638207,-500.0,0.00011099,2]
[345051355,1733952638216,-500.0,0.00011099,2]
[345051356,1733952638226,-500.0,0.00011099,2]
[345051357,1733952638235,-500.0,0.00011099,2]
[345051358,1733952638244,-500.0,0.00011099,2]
[345051359,1733952638254,-500.0,0.00011099,2]
[345051360,1733952638263,-500.0,0.00011099,2]
[345051362,1733952638275,-500.0,0.00011099,2]
[345051364,1733952638285,-500.0,0.00011099,2]
[345051366,1733952638295,-500.0,0.00011099,2]
[345051369,1733952638304,-500.0,0.00011099,2]
[345051370,1733952638314,-500.0,0.00011099,2]
[345051371,1733952638323,-500.0,0.00011099,2]
[345051372,1733952638332,-500.0,0.00011099,2]
[345051374,1733952638342,-385.06,0.00011099,2]
[345051376,1733952638353,-500.0,0.00011099,2]
[345051378,1733952638363,-500.0,0.00011099,2]
[345051380,1733952638372,-500.0,0.00011099,2]
[345051382,1733952638381,-500.0,0.00011099,2]
[345051384,1733952638390,-500.0,0.00011099,2]
[345051386,1733952638402,-500.0,0.00011099,2]
[345051388,1733952638411,-500.0,0.00011099,2]
[345051389,1733952638420,-500.0,0.00011099,2]
[345051390,1733952638430,-500.0,0.00011099,2]
[345051391,1733952638440,-500.0,0.00011099,2]
[345051392,1733952638449,-500.0,0.00011099,2]
[345051393,1733952638458,-500.0,0.00011099,2]
[345051394,1733952638467,-500.0,0.00011099,2]
[345051395,1733952638476,-500.0,0.00011099,2]
[345051396,1733952638485,-214.28,0.00011099,2]
[345051397,1733952638494,-500.0,0.00011099,2]
[345051398,1733952638503,-500.0,0.00011099,2]
[345051399,1733952638512,-500.0,0.00011099,2]
[345051400,1733952638521,-500.0,0.00011099,2]
[345051401,1733952638530,-500.0,0.00011099,2]
[345051402,1733952638540,-500.0,0.00011099,2]
[345051403,1733952638548,-500.0,0.00011099,2]
[345051404,1733952638558,-500.0,0.00011099,2]
[345051405,1733952638567,-500.0,0.00011099,2]
[345051406,1733952638576,-291.52,0.00011099,2]
[345051407,1733952638585,-500.0,0.00011099,2]
[345051408,1733952638595,-500.0,0.00011099,2]
[345051409,1733952638605,-500.0,0.00011099,2]
[345051410,1733952638615,-500.0,0.00011099,2]
[345051411,1733952638624,-500.0,0.00011099,2]
[345051412,1733952638633,-500.0,0.00011099,2]
[345051413,1733952638642,-500.0,0.00011099,2]
[345051414,1733952638656,-605.19509918,0.00011099,2]
[345051415,1733952638665,-500.0,0.00011099,2]
[345051416,1733952638675,-500.0,0.00011099,2]
[345051417,1733952638684,-500.0,0.00011099,2]
[345051418,1733952638693,-500.0,0.00011099,2]
[345051419,1733952638703,-500.0,0.00011099,2]
[345051420,1733952638712,-500.0,0.00011099,2]
[345051421,1733952638722,-500.0,0.00011099,2]
[345051422,1733952638731,-500.0,0.00011099,2]
[345051423,1733952638740,-500.0,0.00011099,2]
[345051424,1733952638749,-500.0,0.00011099,2]
[345051425,1733952638758,-500.0,0.00011099,2]
[345051426,1733952638767,-500.0,0.00011099,2]
[345051427,1733952638777,-500.0,0.00011099,2]
[345051428,1733952638786,-500.0,0.00011099,2]
[345051429,1733952638795,-500.0,0.00011099,2]
[345051430,1733952638804,-500.0,0.00011099,2]
[345051431,1733952638814,-500.0,0.00011099,2]
[345051432,1733952638823,-500.0,0.00011099,2]
[345051433,1733952638832,-500.0,0.00011099,2]
[345051434,1733952638841,-500.0,0.00011099,2]
[345051435,1733952638851,-500.0,0.00011099,2]
[345051436,1733952638861,-500.0,0.00011099,2]
[345051437,1733952638870,-500.0,0.00011099,2]
[345051438,1733952638879,-287.91,0.00011099,2]
[345051439,1733952638888,-169.22199222,0.00011099,2]
[345051440,1733952638898,-500.0,0.00011099,2]
[345051441,1733952638911,-500.0,0.00011099,2]
[345051442,1733952638921,-500.0,0.00011099,2]
[345051443,1733952638930,-500.0,0.00011099,2]
[345051444,1733952638985,-500.0,0.00011099,2]
[345051445,1733952638996,-500.0,0.00011099,2]
[345051446,1733952639007,-500.0,0.00011099,2]
[345051447,1733952639016,-422.62,0.00011099,2]
[345051448,1733952639026,-500.0,0.00011099,2]
[345051449,1733952639036,-500.0,0.00011099,2]
[345051450,1733952639046,-500.0,0.00011099,2]
[345051451,1733952639056,-500.0,0.00011099,2]
[345051452,1733952639066,-500.0,0.00011099,2]
[345051453,1733952639076,-578.76125506,0.00011099,2]
[345051454,1733952639086,-500.0,0.00011099,2]
[345051455,1733952639095,-500.0,0.00011099,2]
[345051456,1733952639105,-500.0,0.00011099,2]
[345051457,1733952639115,-500.0,0.00011099,2]
[345051458,1733952639126,-500.0,0.00011099,2]
[345051459,1733952639135,-500.0,0.00011099,2]
[345051460,1733952639145,-500.0,0.00011099,2]
[345051461,1733952639159,-500.0,0.00011099,2]
[345051462,1733952639168,-500.0,0.00011099,2]
[345051463,1733952639178,-500.0,0.00011099,2]
[345051464,1733952639188,-500.0,0.00011099,2]
[345051465,1733952639197,-500.0,0.00011099,2]
[345051466,1733952639207,-491.04,0.00011099,2]
[345051467,1733952639216,-500.0,0.00011099,2]
[345051468,1733952639225,-500.0,0.00011099,2]
[345051469,1733952639235,-500.0,0.00011099,2]
[345051470,1733952639245,-500.0,0.00011099,2]
[345051471,1733952639254,-1000.0,0.00011099,2]
[345051472,1733952639264,-500.0,0.00011099,2]
[345051473,1733952639277,-266.78,0.00011099,2]
[345051474,1733952639286,-1000.0,0.00011099,2]
[345051475,1733952639296,-1000.0,0.00011099,2]
[345051476,1733952639306,-500.0,0.00011099,2]
[345051477,1733952639317,-500.0,0.00011099,2]
[345051478,1733952639327,-500.0,0.00011099,2]
[345051479,1733952639337,-599.37486216,0.00011099,2]
[345051480,1733952639347,-1620.63,0.00011099,2]
[345051481,1733952639357,-1620.63,0.00011099,2]
[345051482,1733952639370,-1620.63,0.00011099,2]
[345051483,1733952639379,-1620.63,0.00011099,2]
[345051484,1733952639390,-1620.63,0.00011099,2]
[345051485,1733952639402,-1620.63,0.00011099,2]
[345051486,1733952639411,-1620.63,0.00011099,2]
[345051487,1733952639421,-1620.63,0.00011099,2]
[345051488,1733952639431,-1620.63,0.00011099,2]
[345051489,1733952639441,-1620.63,0.00011099,2]
[345051490,1733952639451,-1620.63,0.00011099,2]
[345051491,1733952639460,-1620.63,0.00011099,2]
[345051492,1733952639470,-1620.63,0.00011099,2]
[345051493,1733952639480,-1620.63,0.00011099,2]
[345051494,1733952639489,-1620.63,0.00011099,2]
[345051495,1733952639499,-1620.63,0.00011099,2]
[345051496,1733952639508,-1620.63,0.00011099,2]
[345051497,1733952639518,-1620.63,0.00011099,2]
[345051498,1733952639527,-1620.63,0.00011099,2]
[345051499,1733952639536,-500.0,0.00011099,2]
[345051500,1733952639546,-1620.63,0.00011099,2]
[345051501,1733952639555,-1620.63,0.00011099,2]
[345051502,1733952639565,-1620.63,0.00011099,2]
[345051503,1733952639575,-1620.85163959,0.00011099,2]
[345051504,1733952639584,-500.0,0.00011099,2]
[345051505,1733952639593,-500.0,0.00011099,2]
[345051506,1733952639604,-500.0,0.00011099,2]
[345051507,1733952639614,-500.0,0.00011099,2]
[345051508,1733952639623,-500.0,0.00011099,2]
[345051509,1733952639633,-500.0,0.00011099,2]
[345051511,1733952639642,-500.0,0.00011099,2]
[345051513,1733952639654,-500.0,0.00011099,2]
[345051515,1733952639662,-500.0,0.00011099,2]
[345051516,1733952639670,-500.0,0.00011099,2]
[345051518,1733952639678,-500.0,0.00011099,2]
[345051520,1733952639686,-500.0,0.00011099,2]
[345051521,1733952639694,-500.0,0.00011099,2]
[345051522,1733952639702,-500.0,0.00011099,2]
[345051523,1733952639711,-724.61,0.00011099,2]
[345051525,1733952639721,-724.61,0.00011099,2]
[345051527,1733952639731,-724.61,0.00011099,2]
[345051529,1733952639740,-724.61,0.00011099,2]
[345051530,1733952639750,-724.61,0.00011099,2]
[345051532,1733952639759,-724.61,0.00011099,2]
[345051534,1733952639769,-724.61,0.00011099,2]
[345051536,1733952639778,-724.61,0.00011099,2]
[345051538,1733952639787,-724.61,0.00011099,2]
[345051539,1733952639797,-724.61,0.00011099,2]
[345051540,1733952639807,-724.61,0.00011099,2]
[345051541,1733952639816,-724.61,0.00011099,2]
[345051542,1733952639826,-724.61,0.00011099,2]
[345051543,1733952639835,-724.61,0.00011099,2]
[345051544,1733952639844,-724.61,0.00011099,2]
[345051545,1733952639854,-724.61,0.00011099,2]
[345051546,1733952639863,-724.61,0.00011099,2]
[345051547,1733952639873,-724.61,0.00011099,2]
[345051548,1733952639883,-724.61,0.00011099,2]
[345051549,1733952639892,-724.61,0.00011099,2]
[345051550,1733952639905,-724.61,0.00011099,2]
[345051551,1733952639914,-724.61,0.00011099,2]
[345051552,1733952639924,-724.72,0.00011099,2]
[345051553,1733952639934,-500.0,0.00011099,2]
[345051554,1733952639944,-500.0,0.00011099,2]
[345051555,1733952639954,-500.0,0.00011099,2]
[345051556,1733952639964,-500.0,0.00011099,2]
[345051557,1733952639974,-500.0,0.00011099,2]
[345051558,1733952639984,-500.0,0.00011099,2]
[345051559,1733952639993,-500.0,0.00011099,2]
[345051560,1733952640003,-500.0,0.00011099,2]
[345051561,1733952640013,-500.0,0.00011099,2]
[345051562,1733952640022,-500.0,0.00011099,2]
[345051563,1733952640032,-500.0,0.00011099,2]
[345051564,1733952640042,-500.0,0.00011099,2]
[345051565,1733952640051,-500.0,0.00011099,2]
[345051566,1733952640060,-500.0,0.00011099,2]
[345051567,1733952640070,-500.0,0.00011099,2]
[345051568,1733952640079,-500.0,0.00011099,2]
[345051569,1733952640089,-500.0,0.00011099,2]
[345051570,1733952640098,-500.0,0.00011099,2]
[345051571,1733952640108,-500.0,0.00011099,2]
[345051572,1733952640117,-568.02,0.00011099,2]
[345051573,1733952640126,-500.0,0.00011099,2]
[345051574,1733952640136,-500.0,0.00011099,2]
[345051575,1733952640145,-500.0,0.00011099,2]
[345051576,1733952640157,-500.0,0.00011099,2]
[345051577,1733952640167,-500.0,0.00011099,2]
[345051578,1733952640177,-500.0,0.00011099,2]
[345051579,1733952640187,-420.24208568,0.00011099,2]
[345051580,1733952640196,-500.0,0.00011099,2]
[345051581,1733952640205,-273.16,0.00011099,2]
[345051582,1733952640214,-500.0,0.00011099,2]
[345051583,1733952640224,-401.89339692,0.00011099,2]
[345051584,1733952640233,-500.0,0.00011099,2]
[345051585,1733952640243,-500.0,0.00011099,2]
[345051586,1733952640252,-599.31,0.00011099,2]
[345051587,1733952640261,-500.0,0.00011099,2]
[345051588,1733952640271,-377.89,0.00011099,2]
[345051589,1733952640284,-500.0,0.00011099,2]
[345051590,1733952640293,-500.0,0.00011099,2]
[345051591,1733952640303,-500.0,0.00011099,2]
[345051592,1733952640313,-504.09,0.00011099,2]
[345051593,1733952640322,-500.0,0.00011099,2]
[345051594,1733952640331,-500.0,0.00011099,2]
[345051595,1733952640341,-500.0,0.00011099,2]
[345051596,1733952640352,-500.0,0.00011099,2]
[345051597,1733952640361,-500.0,0.00011099,2]
[345051598,1733952640370,-500.0,0.00011099,2]
[345051599,1733952640380,-500.0,0.00011099,2]
[345051600,1733952640389,-500.0,0.00011099,2]
[345051601,1733952640399,-500.0,0.00011099,2]
[345051602,1733952640415,-500.0,0.00011099,2]
[345051603,1733952640424,-500.0,0.00011099,2]
[345051604,1733952640433,-500.0,0.00011099,2]
[345051605,1733952640443,-500.0,0.00011099,2]
[345051606,1733952640454,-500.0,0.00011099,2]
[345051607,1733952640463,-500.0,0.00011099,2]
[345051608,1733952640472,-500.0,0.00011099,2]
[345051609,1733952640481,-500.0,0.00011099,2]
[345051610,1733952640490,-500.0,0.00011099,2]
[345051611,1733952640499,-500.0,0.00011099,2]
[345051612,1733952640508,-500.0,0.00011099,2]
[345051613,1733952640518,-500.0,0.00011099,2]
[345051614,1733952640527,-637.93829251,0.00011099,2]
[345051615,1733952640536,-500.0,0.00011099,2]
[345051616,1733952640545,-500.0,0.00011099,2]
[345051617,1733952640555,-500.0,0.00011099,2]
[345051618,1733952640565,-500.0,0.00011099,2]
[345051619,1733952640575,-500.0,0.00011099,2]
[345051620,1733952640584,-500.0,0.00011099,2]
[345051621,1733952640593,-500.0,0.00011099,2]
[345051622,1733952640602,-500.0,0.00011099,2]
[345051623,1733952640612,-500.0,0.00011099,2]
[345051624,1733952640622,-500.23073255,0.00011099,2]
[345051625,1733952640631,-500.0,0.00011099,2]
[345051626,1733952640640,-500.0,0.00011099,2]
[345051627,1733952640656,-500.0,0.00011099,2]
[345051628,1733952640665,-500.0,0.00011099,2]
[345051629,1733952640674,-500.0,0.00011099,2]
[345051630,1733952640683,-500.0,0.00011099,2]
[345051631,1733952640692,-500.0,0.00011099,2]
[345051632,1733952640701,-500.0,0.00011099,2]
[345051633,1733952640710,-500.0,0.00011099,2]
[345051634,1733952640720,-500.0,0.00011099,2]
[345051635,1733952640729,-500.0,0.00011099,2]
[345051636,1733952640738,-500.0,0.00011099,2]
[345051637,1733952640747,-500.0,0.00011099,2]
[345051638,1733952640756,-500.0,0.00011099,2]
[345051639,1733952640765,-500.0,0.00011099,2]
[345051640,1733952640774,-500.0,0.00011099,2]
[345051641,1733952640783,-500.0,0.00011099,2]
[345051642,1733952640791,-500.0,0.00011099,2]
[345051643,1733952640801,-500.0,0.00011099,2]
[345051644,1733952640810,-500.0,0.00011099,2]
[345051645,1733952640819,-500.0,0.00011099,2]
[345051646,1733952640828,-500.0,0.00011099,2]
[345051647,1733952640838,-500.0,0.00011099,2]
[345051648,1733952640847,-323.22,0.00011099,2]
[345051649,1733952640856,-500.0,0.00011099,2]
[345051650,1733952640865,-500.0,0.00011099,2]
[345051651,1733952640874,-500.0,0.00011099,2]
[345051652,1733952640883,-500.0,0.00011099,2]
[345051653,1733952640893,-500.0,0.00011099,2]
[345051654,1733952640909,-500.0,0.00011099,2]
[345051655,1733952640918,-500.0,0.00011099,2]
[345051656,1733952640928,-502.03324537,0.00011099,2]
[345051657,1733952640937,-500.0,0.00011099,2]
[345051658,1733952640947,-500.0,0.00011099,2]
[345051659,1733952640956,-500.0,0.00011099,2]
[345051660,1733952640965,-500.0,0.00011099,2]
[345051661,1733952640975,-500.0,0.00011099,2]
[345051662,1733952640984,-500.0,0.00011099,2]
[345051663,1733952640994,-500.0,0.00011099,2]
[345051664,1733952641003,-500.0,0.00011099,2]
[345051665,1733952641013,-500.0,0.00011099,2]
[345051666,1733952641022,-319.44,0.00011099,2]
[345051667,1733952641032,-559.0,0.000111,2]
[345051668,1733952641042,-60667.65725112,0.000111,2]
[345051669,1733952641051,-2206.7659224,0.000111,2]
[345051670,1733952641061,-1000.0,0.000111,2]
[345051671,1733952641070,-430380.60417858,0.000111,2]
[345051672,1733952641316,-1052.1,0.000111,2]
[345051673,1733952641327,-853.06530914,0.000111,2]
[345051674,1733952641338,-785342.0,0.000111,2]
[345051675,1733952641352,-20185.0,0.000111,2]
[345051676,1733952641368,-1024.46704554,0.000111,2]
[345051677,1733952641379,-3825.25955218,0.000111,2]
[345051678,1733952641389,-2100.0,0.000111,2]
[345051679,1733952641416,-269.24235348,0.000111,2]
[345051680,1733952641428,-391.62450768,0.000111,2]
[345051681,1733952641440,-337.75,0.000111,2]
[345051682,1733952641451,-2108.2840491,0.000111,2]
[345051683,1733952641463,-4090.01649661,0.000111,2]
[345051684,1733952641474,-898.83999975,0.000111,2]
[345051685,1733952641485,-20192.0,0.000111,2]
[345051686,1733952641497,-8993.367057,0.000111,2]
[345051687,1733952641508,-57916.52812623,0.000111,2]
[345051688,1733952641519,-36253.79761849,0.000111,2]
[345051689,1733952641531,-23682.5580754,0.000111,2]
[345051690,1733952641543,-57295.94415523,0.000111,2]
[345051691,1733952641559,-14240.0,0.000111,2]
[345051692,1733952641571,-2358.11592722,0.000111,2]
[345051693,1733952641582,-1625.74998,0.000111,2]
[345051694,1733952641594,-8600.0,0.000111,2]
[345051695,1733952641605,-1112.14,0.000111,2]
[345051696,1733952642027,-500.0,0.00011097,2]
[345051697,1733952642037,-500.0,0.00011098,2]
[345051698,1733952642047,-2303.75148366,0.000111,2]
[345051699,1733952642058,-607.275015,0.000111,2]
[345051700,1733952642071,-3454478.44662257,0.000111,2]
[345051701,1733952642081,-4990430.26741445,0.000111,2]
[345051702,1733952642093,-704.95728947,0.000111,2]
[345051703,1733952642105,-31199.9999992,0.000111,2]
[345051704,1733952642116,-23000.0,0.000111,2]
[345051705,1733952642135,-2877.7,0.000111,2]
[345051706,1733952642148,-464.37712229,0.000111,2]
[345051707,1733952642163,-93270.30000005,0.000111,2]
[345051708,1733952642175,-3090.0,0.000111,2]
[345051709,1733952642190,-3056.300959,0.000111,2]
[345051710,1733952642201,-18660.24927808,0.000111,2]
[345051711,1733952642213,-769.06973705,0.000111,2]
[345051712,1733952642229,-1812.46459267,0.000111,2]
[345051713,1733952642242,-84200.0,0.000111,2]
[345051714,1733952642253,-943.21,0.000111,2]
[345051715,1733952642269,-746.24,0.000111,2]
[345051716,1733952642285,-4794.15,0.000111,2]
[345051717,1733952642296,-121648.10635824,0.000111,2]
[345051718,1733952642307,-60039.99140822,0.000111,2]
[345051719,1733952642320,-720.17539576,0.000111,2]
[345051720,1733952642331,-4941.09052972,0.000111,2]
[345051721,1733952642343,-570.500004,0.000111,2]
[345051722,1733952642355,-164008.78873474,0.000111,2]
[345051723,1733952642368,-510.68771863,0.000111,2]
[345051724,1733952642379,-1679.16100423,0.000111,2]
[345051725,1733952642390,-9445.1,0.000111,2]
[345051726,1733952642512,-500.0,0.00011096,2]
[345051727,1733952642522,-500.0,0.00011097,2]
[345051728,1733952642531,-500.0,0.00011098,2]
[345051729,1733952642541,-500.0,0.00011098,2]
[345051730,1733952642550,-326.41074254,0.00011099,2]
[345051731,1733952642562,-173.58925746,0.00011099,2]
[345051732,1733952642571,-151.62524204,0.00011099,2]
[345051734,1733952642583,-254.8310001,0.00011099,2]
[345051735,1733952642595,-93.54375786,0.00011099,2]
[345051736,1733952642604,-266.63543268,0.00011099,2]
[345051737,1733952642616,-233.36456732,0.00011099,2]
[345051738,1733952642625,-500.0,0.00011099,2]
[345051739,1733952642635,-1715.03821754,0.000111,2]
[345051740,1733952642646,-6915.60000093,0.000111,2]
[345051741,1733952642661,-59456.81159505,0.000111,2]
[345051742,1733952642673,-514.59,0.000111,2]
[345051743,1733952642684,-2165.56267967,0.000111,2]
[345051744,1733952642696,-342.87326514,0.000111,2]
[345051745,1733952642707,-346.60024599,0.000111,2]
[345051746,1733952642718,-86783.66639019,0.000111,2]
[345051750,1733952642729,-423.3,0.000111,2]
[345051751,1733952642740,-305.235,0.000111,2]
[345051752,1733952642751,-5408.80135625,0.000111,2]
[345051753,1733952642763,-141525.51848164,0.000111,2]
[345051754,1733952642774,-366.26,0.000111,2]
[345051755,1733952642810,-500.0,0.00011099,2]
[345051757,1733952642820,-29.1999988,0.00011099,2]
[345051758,1733952642831,-470.8000012,0.00011099,2]
[345051759,1733952642840,-2916.90602614,0.000111,2]
[345051760,1733952642853,-9642.07525462,0.000111,2]
[345051762,1733952642864,-32048.54249885,0.000111,2]
[345051764,1733952642881,-404.89670024,0.000111,2]
[345051765,1733952642892,-626925.23879891,0.000111,2]
[345051766,1733952642905,-340.88830427,0.000111,2]
[345051767,1733952642916,-6279.903045,0.000111,2]
[345051768,1733952642928,-2084482.61226049,0.000111,2]
[345051769,1733952642939,-4444.399993,0.000111,2]
[345051770,1733952642951,-412.69,0.000111,2]
[345051771,1733952642962,-11070.00000002,0.000111,2]
[345051773,1733952643172,-500.0,0.00011099,2]
[345051774,1733952643182,-500.0,0.00011099,2]
[345051775,1733952643193,-500.0,0.00011099,2]
[345051776,1733952643203,-500.0,0.00011099,2]
[345051777,1733952643212,-500.0,0.00011099,2]
[345051778,1733952643222,-500.0,0.00011099,2]
[345051779,1733952643232,-500.0,0.00011099,2]
[345051787,1733952643432,-500.0,0.00011099,2]
[345051788,1733952643442,-500.0,0.00011099,2]
[345051789,1733952643452,-500.0,0.00011099,2]
[345051790,1733952643462,-500.0,0.00011099,2]
[345051791,1733952643472,-500.0,0.00011099,2]
[345051792,1733952643482,-500.0,0.00011099,2]
[345051793,1733952643491,-302.82617831,0.00011099,2]
[345051794,1733952643501,-500.0,0.00011099,2]
[345051795,1733952643510,-11215.67417169,0.000111,2]
[345051796,1733952643528,-282.7776,0.000111,2]
[345051797,1733952643539,-604.0,0.000111,2]
[345051798,1733952643550,-6575.89089411,0.000111,2]
[345051799,1733952643561,-1329.35891046,0.000111,2]
[345051800,1733952643583,-500.0,0.00011099,2]
[345051801,1733952643592,-765.99999999,0.000111,2]
[345051802,1733952643603,-385.94870052,0.000111,2]
[345051803,1733952643614,-390.0012,0.000111,2]
[345051804,1733952643625,-92913.80442733,0.000111,2]
[345051805,1733952643635,-554.418,0.000111,2]
[345051806,1733952643646,-572.63321984,0.000111,2]
[345051807,1733952643661,-456.4680704,0.000111,2]
[345051808,1733952643672,-1090.0,0.000111,2]
[345051809,1733952643683,-1736.12925599,0.000111,2]
[345051810,1733952643695,-326.66,0.000111,2]
[345051811,1733952643706,-351.74,0.000111,2]
[345051812,1733952643717,-4200.0,0.000111,2]
[345051813,1733952643729,-5599.999999,0.000111,2]
[345051828,1733952645771,-500.0,0.00011098,2]
[345051829,1733952645781,-186.55,0.00011099,2]
[345051830,1733952645790,-2423.32774867,0.000111,2]
[345051831,1733952645801,-1680.0,0.000111,2]
[345051832,1733952645813,-380.73328074,0.000111,2]
[345051833,1733952645837,-666.66666515,0.000111,2]
[345051834,1733952645848,-1875.10000005,0.000111,2]
[345051835,1733952645964,-7360.0,0.000111,2]
[345051836,1733952646092,-482.5,0.00011099,2]
[345051837,1733952646105,-17.5,0.00011099,2]
[345051838,1733952646115,-1047.49247129,0.000111,2]
[345051839,1733952646127,-79086.11849441,0.000111,2]
[345051840,1733952646138,-22377.93226621,0.000111,2]
[345051841,1733952646152,-28735.17919955,0.000111,2]
[345051842,1733952646166,-9376.25266313,0.000111,2]
[345051843,1733952646178,-35525.21565088,0.000111,2]
[345051844,1733952646189,-33445.75193152,0.000111,2]
[345051846,1733952903386,150.0,0.000111,30]
[345051847,1733952903670,150.0,0.00012917,30]
[345051848,1733953203569,150.0,0.000111,30]
[345051849,1733953203900,150.0,0.00013825,30]
[345051850,1733953263779,8187.0,9.603e-05,2]
[345051853,1733953503584,150.0,0.000111,30]
[345051854,1733953623610,469.85,8.219e-05,2]
[345051864,1733953803416,151.0,0.000111,30]
[345051876,1733953831970,-250.0,9.739e-05,2]
[345051877,1733953831983,-4997.39184474,9.817e-05,2]
[345051878,1733953831993,-7621.68,9.817e-05,2]
[345051879,1733953832003,-250.0,9.89e-05,2]
[345051880,1733953832012,-206.5541591,9.89e-05,2]
[345051881,1733953832023,-355.18,9.946e-05,2]
[345051882,1733953832032,-954.69,9.97e-05,2]
[345051883,1733953832042,-200.0,0.00010125,2]
[345051884,1733953832056,-300.0,0.0001013,2]
[345051885,1733953832065,-602.76,0.00010131,2]
[345051886,1733953832075,-153.94,0.00010137,2]
[345051887,1733953832084,-150.0,0.00010137,2]